[Event "Titled Tuesday Blitz June 07 Early 2022"]
[White "Matinian, Nikita"]
[Black "Florescu, Codrut-Constantin"]
[WhiteFideId "24129100"]
[BlackFideId "1202200"]
[WhiteElo "2422"]
[BlackElo "2191"]
[Result "1-0"]
[Round "07"]
[TimeControl "180+1"]
[Date "2022.06.07"]
[WhiteClock "0:01:31"]
[BlackClock "0:00:38"]

1. e4 {[%clk 0:03:00]}  c5 {[%clk 0:02:59]} 2. Nf3 {[%clk 0:03:00]}  e6 {[%clk 0:02:59]} 3. d4 {[%clk 0:02:59]}  cxd4 {[%clk 0:03:00]} 4. Nxd4 {[%clk 0:03:00]}  a6 {[%clk 0:03:00]} 5. Nc3 {[%clk 0:03:01]}  Qc7 {[%clk 0:03:00]} 6. Bd3 {[%clk 0:03:00]}  Nf6 {[%clk 0:02:59]} 7. O-O {[%clk 0:02:59]}  Bc5 {[%clk 0:02:56]} 8. Nb3 {[%clk 0:02:56]}  Ba7 {[%clk 0:02:56]} 9. Kh1 {[%clk 0:02:56]}  d6 {[%clk 0:02:55]} 10. Bg5 {[%clk 0:02:54]}  Nbd7 {[%clk 0:02:54]} 11. f4 {[%clk 0:02:54]}  h5 {[%clk 0:02:52]} 12. Qe2 {[%clk 0:02:46]}  b5 {[%clk 0:02:46]} 13. Rad1 {[%clk 0:02:44]}  Bb7 {[%clk 0:02:46]} 14. Bxb5 {[%clk 0:02:44]}  axb5 {[%clk 0:02:41]} 15. Nxb5 {[%clk 0:02:45]}  Qb8 {[%clk 0:02:31]} 16. Nxd6+ {[%clk 0:02:43]}  Kf8 {[%clk 0:02:30]} 17. e5 {[%clk 0:02:43]}  Nd5 {[%clk 0:02:25]} 18. f5 {[%clk 0:02:43]}  Kg8 {[%clk 0:02:00]} 19. fxe6 {[%clk 0:02:33]}  fxe6 {[%clk 0:01:59]} 20. Rf7 {[%clk 0:02:31]}  Qxd6 {[%clk 0:01:43]} 21. exd6 {[%clk 0:02:16]}  Kxf7 {[%clk 0:01:42]} 22. c4 {[%clk 0:02:12]}  N5f6 {[%clk 0:01:40]} 23. Na5 {[%clk 0:02:01]}  Be4 {[%clk 0:01:29]} 24. b4 {[%clk 0:01:50]}  h4 {[%clk 0:01:22]} 25. Rf1 {[%clk 0:01:39]}  Bf5 {[%clk 0:01:14]} 26. Nc6 {[%clk 0:01:35]}  h3 {[%clk 0:01:11]} 27. Rxf5 {[%clk 0:01:31]}  hxg2+ {[%clk 0:01:04]} 28. Kxg2 {[%clk 0:01:32]}  exf5 {[%clk 0:01:04]} 29. Qe7+ {[%clk 0:01:32]}  Kg6 {[%clk 0:01:04]} 30. Bxf6 {[%clk 0:01:33]}  Nxf6 {[%clk 0:00:49]} 31. Ne5+ {[%clk 0:01:33]}  Kg5 {[%clk 0:00:39]} 32. Nf7+ {[%clk 0:01:33]}  Kg6 {[%clk 0:00:39]} 33. Nxh8+ {[%clk 0:01:32]}  Rxh8 {[%clk 0:00:38]} 34. Qxa7 {[%clk 0:01:31]} 1-0


[Site "https://www.chess.com"]

[Event "Titled Tuesday Blitz June 07 Early 2022"]
[White "Matlakov, Maxim"]
[Black "Bharath Subramaniyam H"]
[WhiteFideId "4168003"]
[BlackFideId "46634827"]
[WhiteElo "2669"]
[BlackElo "2242"]
[Result "1-0"]
[Round "07"]
[TimeControl "180+1"]
[Date "2022.06.07"]
[WhiteClock "0:00:27"]
[BlackClock "0:00:15"]

1. d4 {[%clk 0:03:00]}  Nf6 {[%clk 0:02:58]} 2. Nf3 {[%clk 0:03:01]}  e6 {[%clk 0:02:58]} 3. c4 {[%clk 0:03:00]}  d5 {[%clk 0:02:57]} 4. g3 {[%clk 0:03:00]}  c6 {[%clk 0:02:56]} 5. Qc2 {[%clk 0:02:58]}  Nbd7 {[%clk 0:02:54]} 6. Nbd2 {[%clk 0:02:57]}  b6 {[%clk 0:02:52]} 7. Bg2 {[%clk 0:02:57]}  Bb7 {[%clk 0:02:52]} 8. O-O {[%clk 0:02:57]}  Be7 {[%clk 0:02:49]} 9. e4 {[%clk 0:02:57]}  dxe4 {[%clk 0:02:48]} 10. Nxe4 {[%clk 0:02:57]}  Nxe4 {[%clk 0:02:46]} 11. Qxe4 {[%clk 0:02:58]}  O-O {[%clk 0:02:46]} 12. Rd1 {[%clk 0:02:52]}  Nf6 {[%clk 0:02:45]} 13. Qe2 {[%clk 0:02:51]}  Rc8 {[%clk 0:02:43]} 14. Bf4 {[%clk 0:02:49]}  Nd7 {[%clk 0:02:28]} 15. Rac1 {[%clk 0:02:30]}  Qe8 {[%clk 0:02:21]} 16. Nd2 {[%clk 0:02:11]}  Nf6 {[%clk 0:02:04]} 17. Ne4 {[%clk 0:02:04]}  Nxe4 {[%clk 0:02:03]} 18. Bxe4 {[%clk 0:02:05]}  Qd7 {[%clk 0:01:57]} 19. c5 {[%clk 0:02:02]}  Rfd8 {[%clk 0:01:52]} 20. b4 {[%clk 0:02:02]}  Qe8 {[%clk 0:01:38]} 21. h4 {[%clk 0:02:00]}  b5 {[%clk 0:01:28]} 22. h5 {[%clk 0:01:55]}  h6 {[%clk 0:01:27]} 23. Rd2 {[%clk 0:01:47]}  a5 {[%clk 0:01:25]} 24. a3 {[%clk 0:01:36]}  axb4 {[%clk 0:01:26]} 25. axb4 {[%clk 0:01:37]}  Ra8 {[%clk 0:01:26]} 26. Be5 {[%clk 0:01:27]}  Bf8 {[%clk 0:01:19]} 27. Bc2 {[%clk 0:01:25]}  Ra3 {[%clk 0:01:06]} 28. Re1 {[%clk 0:01:25]}  Rda8 {[%clk 0:00:56]} 29. Qe4 {[%clk 0:01:21]}  f5 {[%clk 0:00:56]} 30. Qe2 {[%clk 0:01:22]}  Bc8 {[%clk 0:00:56]} 31. Rb1 {[%clk 0:00:58]}  Qf7 {[%clk 0:00:55]} 32. Bb3 {[%clk 0:00:58]}  Be7 {[%clk 0:00:53]} 33. Rd3 {[%clk 0:00:57]}  Bg5 {[%clk 0:00:49]} 34. Qf3 {[%clk 0:00:57]}  Bd7 {[%clk 0:00:44]} 35. Bxe6 {[%clk 0:00:54]}  Bxe6 {[%clk 0:00:38]} 36. Rxa3 {[%clk 0:00:54]}  Rxa3 {[%clk 0:00:39]} 37. Qxa3 {[%clk 0:00:54]}  Qxh5 {[%clk 0:00:39]} 38. Qa8+ {[%clk 0:00:51]}  Kh7 {[%clk 0:00:39]} 39. Qxc6 {[%clk 0:00:52]}  Bc4 {[%clk 0:00:21]} 40. Qd7 {[%clk 0:00:45]}  Qg6 {[%clk 0:00:19]} 41. c6 {[%clk 0:00:44]}  f4 {[%clk 0:00:19]} 42. Re1 {[%clk 0:00:41]}  fxg3 {[%clk 0:00:19]} 43. Bxg3 {[%clk 0:00:41]}  Bd2 {[%clk 0:00:19]} 44. Re7 {[%clk 0:00:37]}  Bxb4 {[%clk 0:00:18]} 45. c7 {[%clk 0:00:28]}  Bxe7 {[%clk 0:00:19]} 46. c8=Q {[%clk 0:00:28]}  Qe4 {[%clk 0:00:17]} 47. Qf5+ {[%clk 0:00:28]}  Qxf5 {[%clk 0:00:17]} 48. Qxf5+ {[%clk 0:00:28]}  Kg8 {[%clk 0:00:16]} 49. d5 {[%clk 0:00:28]}  Bf6 {[%clk 0:00:15]} 50. d6 {[%clk 0:00:28]}  Kf7 {[%clk 0:00:16]} 51. Qc8 {[%clk 0:00:27]}  Be6 {[%clk 0:00:15]} 52. d7 {[%clk 0:00:27]} 1-0


[Site "https://www.chess.com"]

[Event "Titled Tuesday Blitz June 07 Early 2022"]
[White "Papasimakopoulos, Alexandros"]
[Black "Svane, Frederik"]
[WhiteFideId "4244125"]
[BlackFideId "12923044"]
[WhiteElo "2340"]
[BlackElo "2459"]
[Result "0-1"]
[Round "07"]
[TimeControl "180+1"]
[Date "2022.06.07"]
[WhiteClock "0:01:39"]
[BlackClock "0:01:24"]

1. d4 {[%clk 0:03:00]}  d6 {[%clk 0:02:59]} 2. Nf3 {[%clk 0:03:00]}  Nf6 {[%clk 0:02:59]} 3. c4 {[%clk 0:03:00]}  g6 {[%clk 0:02:55]} 4. Nc3 {[%clk 0:03:00]}  Bf5 {[%clk 0:02:56]} 5. Nh4 {[%clk 0:03:00]}  Bd7 {[%clk 0:02:56]} 6. e4 {[%clk 0:03:00]}  Bg7 {[%clk 0:02:56]} 7. Nf3 {[%clk 0:02:59]}  O-O {[%clk 0:02:56]} 8. Be2 {[%clk 0:03:00]}  e5 {[%clk 0:02:51]} 9. O-O {[%clk 0:02:53]}  Nc6 {[%clk 0:02:49]} 10. d5 {[%clk 0:02:52]}  Ne7 {[%clk 0:02:49]} 11. Ne1 {[%clk 0:02:50]}  Ne8 {[%clk 0:02:48]} 12. f3 {[%clk 0:02:50]}  f5 {[%clk 0:02:48]} 13. Be3 {[%clk 0:02:50]}  f4 {[%clk 0:02:48]} 14. Bf2 {[%clk 0:02:51]}  g5 {[%clk 0:02:47]} 15. h3 {[%clk 0:02:47]}  Nf6 {[%clk 0:02:45]} 16. b4 {[%clk 0:02:46]}  h5 {[%clk 0:02:44]} 17. Nd3 {[%clk 0:02:46]}  Ng6 {[%clk 0:02:40]} 18. c5 {[%clk 0:02:45]}  Rf7 {[%clk 0:02:40]} 19. b5 {[%clk 0:02:43]}  b6 {[%clk 0:02:36]} 20. cxd6 {[%clk 0:02:37]}  cxd6 {[%clk 0:02:36]} 21. Nb4 {[%clk 0:02:38]}  Bf8 {[%clk 0:02:30]} 22. Nc6 {[%clk 0:02:38]}  Qe8 {[%clk 0:02:30]} 23. a4 {[%clk 0:02:37]}  g4 {[%clk 0:02:17]} 24. fxg4 {[%clk 0:02:37]}  hxg4 {[%clk 0:02:18]} 25. Bxg4 {[%clk 0:02:38]}  Nxg4 {[%clk 0:02:17]} 26. hxg4 {[%clk 0:02:38]}  Qc8 {[%clk 0:02:12]} 27. a5 {[%clk 0:02:29]}  Bxg4 {[%clk 0:02:12]} 28. Qd3 {[%clk 0:02:29]}  f3 {[%clk 0:02:12]} 29. axb6 {[%clk 0:02:28]}  fxg2 {[%clk 0:02:09]} 30. Rfe1 {[%clk 0:02:25]}  Bf3 {[%clk 0:02:05]} 31. Bg3 {[%clk 0:01:58]}  Qh3 {[%clk 0:02:02]} 32. Bh2 {[%clk 0:01:57]}  Rh7 {[%clk 0:02:02]} 33. Kf2 {[%clk 0:01:48]}  Qxh2 {[%clk 0:01:40]} 34. Rg1 {[%clk 0:01:48]}  Rf7 {[%clk 0:01:35]} 35. Qxf3 {[%clk 0:01:39]}  Rxf3+ {[%clk 0:01:33]} 36. Kxf3 {[%clk 0:01:40]}  axb6 {[%clk 0:01:27]} 37. Rxg2 {[%clk 0:01:39]}  Qh5+ {[%clk 0:01:24]} 38. Ke3 {[%clk 0:01:39]}  Rxa1 {[%clk 0:01:24]} 0-1


[Site "https://www.chess.com"]

[Event "Titled Tuesday Blitz June 07 Early 2022"]
[White "Riehle, Marco"]
[Black "Saveliev, Alexei"]
[WhiteFideId "12904392"]
[BlackFideId "24128546"]
[WhiteElo "2462"]
[BlackElo "2281"]
[Result "1-0"]
[Round "07"]
[TimeControl "180+1"]
[Date "2022.06.07"]
[WhiteClock "0:01:41"]
[BlackClock "0:01:02"]

1. e4 {[%clk 0:02:59]}  g6 {[%clk 0:03:00]} 2. d4 {[%clk 0:02:59]}  Bg7 {[%clk 0:02:58]} 3. c4 {[%clk 0:03:00]}  d6 {[%clk 0:02:59]} 4. Nc3 {[%clk 0:03:00]}  Nc6 {[%clk 0:02:57]} 5. Be3 {[%clk 0:03:00]}  e5 {[%clk 0:02:57]} 6. d5 {[%clk 0:03:00]}  Nce7 {[%clk 0:02:56]} 7. g4 {[%clk 0:03:00]}  f5 {[%clk 0:02:56]} 8. gxf5 {[%clk 0:03:01]}  gxf5 {[%clk 0:02:57]} 9. Qh5+ {[%clk 0:03:02]}  Kf8 {[%clk 0:02:57]} 10. exf5 {[%clk 0:03:02]}  Nf6 {[%clk 0:02:58]} 11. Qe2 {[%clk 0:03:02]}  Bxf5 {[%clk 0:02:50]} 12. O-O-O {[%clk 0:02:59]}  Qd7 {[%clk 0:02:22]} 13. h4 {[%clk 0:02:58]}  a6 {[%clk 0:01:54]} 14. Bh3 {[%clk 0:02:51]}  h6 {[%clk 0:01:52]} 15. f4 {[%clk 0:02:40]}  Ng6 {[%clk 0:01:37]} 16. fxe5 {[%clk 0:02:31]}  Nxe5 {[%clk 0:01:36]} 17. Rf1 {[%clk 0:02:20]}  Bg4 {[%clk 0:01:12]} 18. Bxg4 {[%clk 0:01:42]}  Qxg4 {[%clk 0:01:13]} 19. Nf3 {[%clk 0:01:43]}  Nxf3 {[%clk 0:01:02]} 20. Rxf3 {[%clk 0:01:42]}  Re8 {[%clk 0:01:01]} 21. Rxf6+ {[%clk 0:01:41]}  Bxf6 {[%clk 0:01:02]} 1-0


[Site "https://www.chess.com"]

[Event "Titled Tuesday Blitz June 07 Early 2022"]
[White "Sadhwani, Raunak"]
[Black "Wagner, Dennis"]
[WhiteFideId "35093487"]
[BlackFideId "24650684"]
[WhiteElo "2616"]
[BlackElo "2355"]
[Result "1-0"]
[Round "07"]
[TimeControl "180+1"]
[Date "2022.06.07"]
[WhiteClock "0:00:16"]
[BlackClock "0:00:04"]

1. e4 {[%clk 0:03:00]}  e5 {[%clk 0:02:47]} 2. Nf3 {[%clk 0:03:01]}  Nc6 {[%clk 0:02:47]} 3. Bb5 {[%clk 0:03:01]}  a6 {[%clk 0:02:47]} 4. Ba4 {[%clk 0:03:01]}  Nf6 {[%clk 0:02:47]} 5. d3 {[%clk 0:03:02]}  Bc5 {[%clk 0:02:47]} 6. c3 {[%clk 0:02:52]}  d6 {[%clk 0:02:47]} 7. Bg5 {[%clk 0:02:46]}  h6 {[%clk 0:02:45]} 8. Bh4 {[%clk 0:02:47]}  Ba7 {[%clk 0:02:44]} 9. Nbd2 {[%clk 0:02:42]}  Bd7 {[%clk 0:02:33]} 10. Bc2 {[%clk 0:02:37]}  Qe7 {[%clk 0:02:08]} 11. a4 {[%clk 0:02:30]}  g5 {[%clk 0:01:35]} 12. Bg3 {[%clk 0:02:30]}  Rg8 {[%clk 0:01:21]} 13. b4 {[%clk 0:02:21]}  h5 {[%clk 0:01:11]} 14. h4 {[%clk 0:02:20]}  g4 {[%clk 0:01:10]} 15. Ng5 {[%clk 0:01:55]}  Rg7 {[%clk 0:01:10]} 16. Bb3 {[%clk 0:01:21]}  Ng8 {[%clk 0:01:10]} 17. Qb1 {[%clk 0:01:05]}  Nh6 {[%clk 0:00:54]} 18. Qa2 {[%clk 0:01:04]}  Nd8 {[%clk 0:00:55]} 19. f4 {[%clk 0:00:32]}  f6 {[%clk 0:00:43]} 20. Rf1 {[%clk 0:00:28]}  Be3 {[%clk 0:00:36]} 21. f5 {[%clk 0:00:27]}  Bf4 {[%clk 0:00:11]} 22. Bxf4 {[%clk 0:00:25]}  exf4 {[%clk 0:00:12]} 23. Ne6 {[%clk 0:00:26]}  Bxe6 {[%clk 0:00:11]} 24. fxe6 {[%clk 0:00:27]}  f3 {[%clk 0:00:10]} 25. gxf3 {[%clk 0:00:26]}  g3 {[%clk 0:00:11]} 26. O-O-O {[%clk 0:00:26]}  Nc6 {[%clk 0:00:10]} 27. Bd5 {[%clk 0:00:23]}  Ne5 {[%clk 0:00:10]} 28. d4 {[%clk 0:00:17]}  Nd3+ {[%clk 0:00:09]} 29. Kc2 {[%clk 0:00:17]}  Nf4 {[%clk 0:00:09]} 30. Bxb7 {[%clk 0:00:18]}  Rb8 {[%clk 0:00:10]} 31. Bc6+ {[%clk 0:00:18]}  Kf8 {[%clk 0:00:10]} 32. d5 {[%clk 0:00:18]}  f5 {[%clk 0:00:10]} 33. e5 {[%clk 0:00:17]}  g2 {[%clk 0:00:09]} 34. Rg1 {[%clk 0:00:17]}  Qxh4 {[%clk 0:00:10]} 35. exd6 {[%clk 0:00:16]}  cxd6 {[%clk 0:00:11]} 36. Qc4 {[%clk 0:00:17]}  Ke7 {[%clk 0:00:09]} 37. Qxa6 {[%clk 0:00:17]}  Kf6 {[%clk 0:00:10]} 38. Qc4 {[%clk 0:00:17]}  Qg3 {[%clk 0:00:06]} 39. Qd4+ {[%clk 0:00:17]}  Ke7 {[%clk 0:00:05]} 40. Qa7+ {[%clk 0:00:17]}  Kf6 {[%clk 0:00:04]} 41. Qxb8 {[%clk 0:00:17]}  Nh3 {[%clk 0:00:05]} 42. Qf8+ {[%clk 0:00:17]}  Ke5 {[%clk 0:00:05]} 43. e7 {[%clk 0:00:17]}  Nxg1 {[%clk 0:00:04]} 44. e8=Q+ {[%clk 0:00:17]}  Kf4 {[%clk 0:00:04]} 45. Qe4+ {[%clk 0:00:16]}  Kg5 {[%clk 0:00:04]} 46. Qxg7# {[%clk 0:00:16]} 1-0


[Site "https://www.chess.com"]

[Event "Titled Tuesday Blitz June 07 Early 2022"]
[White "Sarana, Alexey"]
[Black "Morefield, Jason"]
[WhiteFideId "24133795"]
[BlackFideId "30920825"]
[WhiteElo "2666"]
[BlackElo "2171"]
[Result "1-0"]
[Round "07"]
[TimeControl "180+1"]
[Date "2022.06.07"]
[WhiteClock "0:00:27"]
[BlackClock "0:00:02"]

1. d4 {[%clk 0:03:00]}  d5 {[%clk 0:02:57]} 2. c4 {[%clk 0:03:01]}  c6 {[%clk 0:02:56]} 3. Nf3 {[%clk 0:03:01]}  Nf6 {[%clk 0:02:56]} 4. Nc3 {[%clk 0:03:01]}  e6 {[%clk 0:02:56]} 5. g3 {[%clk 0:02:59]}  dxc4 {[%clk 0:02:50]} 6. Bg2 {[%clk 0:02:58]}  Nbd7 {[%clk 0:02:44]} 7. O-O {[%clk 0:02:58]}  b5 {[%clk 0:02:40]} 8. e4 {[%clk 0:02:58]}  Be7 {[%clk 0:02:40]} 9. a4 {[%clk 0:02:45]}  b4 {[%clk 0:02:33]} 10. e5 {[%clk 0:02:45]}  bxc3 {[%clk 0:02:30]} 11. exf6 {[%clk 0:02:45]}  Bxf6 {[%clk 0:02:24]} 12. bxc3 {[%clk 0:02:46]}  O-O {[%clk 0:02:24]} 13. Nd2 {[%clk 0:02:46]}  Qc7 {[%clk 0:01:59]} 14. Nxc4 {[%clk 0:02:37]}  Ba6 {[%clk 0:01:59]} 15. Bf4 {[%clk 0:02:38]}  e5 {[%clk 0:01:59]} 16. Nxe5 {[%clk 0:01:38]}  Nxe5 {[%clk 0:01:50]} 17. Re1 {[%clk 0:01:37]}  Rfe8 {[%clk 0:01:43]} 18. dxe5 {[%clk 0:01:13]}  Bxe5 {[%clk 0:01:38]} 19. Bxe5 {[%clk 0:01:12]}  Rxe5 {[%clk 0:01:37]} 20. Qd4 {[%clk 0:01:12]}  Rxe1+ {[%clk 0:01:29]} 21. Rxe1 {[%clk 0:01:12]}  h6 {[%clk 0:01:07]} 22. Qc5 {[%clk 0:01:08]}  Rc8 {[%clk 0:00:33]} 23. a5 {[%clk 0:00:55]}  Rd8 {[%clk 0:00:22]} 24. h4 {[%clk 0:00:54]}  Bb5 {[%clk 0:00:13]} 25. c4 {[%clk 0:00:50]}  Qxa5 {[%clk 0:00:10]} 26. Rc1 {[%clk 0:00:48]}  Qd2 {[%clk 0:00:04]} 27. cxb5 {[%clk 0:00:45]}  cxb5 {[%clk 0:00:05]} 28. Ra1 {[%clk 0:00:43]}  b4 {[%clk 0:00:03]} 29. Rxa7 {[%clk 0:00:33]}  b3 {[%clk 0:00:03]} 30. Qc4 {[%clk 0:00:32]}  Qd1+ {[%clk 0:00:01]} 31. Kh2 {[%clk 0:00:32]}  Kh8 {[%clk 0:00:02]} 32. Rb7 {[%clk 0:00:31]}  Qc2 {[%clk 0:00:01]} 33. Qxf7 {[%clk 0:00:29]}  Qc3 {[%clk 0:00:02]} 34. Rxb3 {[%clk 0:00:27]} 1-0


[Site "https://www.chess.com"]

[Event "Titled Tuesday Blitz June 07 Early 2022"]
[White "Urazayev, Arystanbek"]
[Black "Agibileg, Uurtsaikh"]
[WhiteFideId "13709810"]
[BlackFideId "4901606"]
[WhiteElo "2422"]
[BlackElo "2205"]
[Result "1-0"]
[Round "07"]
[TimeControl "180+1"]
[Date "2022.06.07"]
[WhiteClock "0:01:24"]
[BlackClock "0:00:49"]

1. e4 {[%clk 0:03:00]}  c5 {[%clk 0:02:59]} 2. Nf3 {[%clk 0:03:01]}  e6 {[%clk 0:02:59]} 3. d4 {[%clk 0:03:01]}  cxd4 {[%clk 0:03:00]} 4. Nxd4 {[%clk 0:03:02]}  Nc6 {[%clk 0:03:01]} 5. Nc3 {[%clk 0:03:02]}  Qc7 {[%clk 0:03:00]} 6. g4 {[%clk 0:03:02]}  a6 {[%clk 0:02:58]} 7. Be3 {[%clk 0:03:02]}  Nxd4 {[%clk 0:02:54]} 8. Qxd4 {[%clk 0:03:02]}  b5 {[%clk 0:02:54]} 9. O-O-O {[%clk 0:03:02]}  b4 {[%clk 0:02:49]} 10. Na4 {[%clk 0:02:51]}  d6 {[%clk 0:02:41]} 11. Nb6 {[%clk 0:02:39]}  Rb8 {[%clk 0:02:41]} 12. Qxb4 {[%clk 0:02:37]}  Nf6 {[%clk 0:02:38]} 13. Qa4+ {[%clk 0:02:34]}  Nd7 {[%clk 0:02:34]} 14. Nxc8 {[%clk 0:02:28]}  Rxc8 {[%clk 0:02:35]} 15. Bxa6 {[%clk 0:02:21]}  Ra8 {[%clk 0:02:30]} 16. Qc4 {[%clk 0:02:22]}  Qa5 {[%clk 0:02:22]} 17. Bb5 {[%clk 0:02:07]}  Qxa2 {[%clk 0:02:09]} 18. Qc7 {[%clk 0:01:34]}  Qa1+ {[%clk 0:01:53]} 19. Kd2 {[%clk 0:01:33]}  Qa5+ {[%clk 0:01:54]} 20. Qxa5 {[%clk 0:01:34]}  Rxa5 {[%clk 0:01:55]} 21. c4 {[%clk 0:01:35]}  d5 {[%clk 0:01:38]} 22. exd5 {[%clk 0:01:35]}  exd5 {[%clk 0:01:38]} 23. Kc2 {[%clk 0:01:35]}  Rxb5 {[%clk 0:01:11]} 24. cxb5 {[%clk 0:01:35]}  Nf6 {[%clk 0:01:06]} 25. g5 {[%clk 0:01:35]}  Ng4 {[%clk 0:01:02]} 26. Rxd5 {[%clk 0:01:30]}  Be7 {[%clk 0:00:58]} 27. Bd4 {[%clk 0:01:27]}  O-O {[%clk 0:00:48]} 28. f3 {[%clk 0:01:24]}  Rc8+ {[%clk 0:00:49]} 29. Kb1 {[%clk 0:01:24]} 1-0


[Site "https://www.chess.com"]

[Event "Titled Tuesday Blitz June 07 Early 2022"]
[White "Vasquez Schroeder, Rodrigo"]
[Black "Skliarov, Viktor"]
[WhiteFideId "3400042"]
[BlackFideId "14106736"]
[WhiteElo "2567"]
[BlackElo "2229"]
[Result "1-0"]
[Round "07"]
[TimeControl "180+1"]
[Date "2022.06.07"]
[WhiteClock "0:00:06"]
[BlackClock "0:00:05"]

1. e4 {[%clk 0:03:00]}  c5 {[%clk 0:02:59]} 2. Nf3 {[%clk 0:03:00]}  Nc6 {[%clk 0:03:00]} 3. d4 {[%clk 0:03:01]}  cxd4 {[%clk 0:03:00]} 4. Nxd4 {[%clk 0:03:01]}  Nf6 {[%clk 0:03:01]} 5. Nc3 {[%clk 0:03:01]}  e5 {[%clk 0:03:01]} 6. Ndb5 {[%clk 0:03:02]}  d6 {[%clk 0:03:02]} 7. Bg5 {[%clk 0:03:02]}  a6 {[%clk 0:03:02]} 8. Na3 {[%clk 0:03:03]}  b5 {[%clk 0:03:03]} 9. Nd5 {[%clk 0:03:03]}  Be7 {[%clk 0:03:02]} 10. Bxf6 {[%clk 0:03:04]}  Bxf6 {[%clk 0:03:02]} 11. c3 {[%clk 0:03:04]}  Bg5 {[%clk 0:03:00]} 12. Nc2 {[%clk 0:03:04]}  O-O {[%clk 0:03:00]} 13. a4 {[%clk 0:03:04]}  bxa4 {[%clk 0:03:00]} 14. Rxa4 {[%clk 0:03:05]}  a5 {[%clk 0:03:01]} 15. Bc4 {[%clk 0:03:05]}  Rb8 {[%clk 0:03:01]} 16. b3 {[%clk 0:03:05]}  Kh8 {[%clk 0:03:01]} 17. Nce3 {[%clk 0:03:04]}  Ne7 {[%clk 0:02:56]} 18. h4 {[%clk 0:02:48]}  Bxe3 {[%clk 0:02:21]} 19. Nxe3 {[%clk 0:02:47]}  f5 {[%clk 0:02:21]} 20. exf5 {[%clk 0:02:42]}  Nxf5 {[%clk 0:02:19]} 21. Nxf5 {[%clk 0:02:39]}  Bxf5 {[%clk 0:02:17]} 22. Bd5 {[%clk 0:02:37]}  Bd7 {[%clk 0:02:00]} 23. Re4 {[%clk 0:02:25]}  Qc7 {[%clk 0:01:44]} 24. Re3 {[%clk 0:02:22]}  a4 {[%clk 0:01:27]} 25. b4 {[%clk 0:02:17]}  Bb5 {[%clk 0:01:05]} 26. Rhh3 {[%clk 0:01:47]}  Rf4 {[%clk 0:00:53]} 27. h5 {[%clk 0:01:39]}  Rbf8 {[%clk 0:00:48]} 28. Rhf3 {[%clk 0:01:30]}  a3 {[%clk 0:00:33]} 29. g3 {[%clk 0:00:55]}  R4f6 {[%clk 0:00:21]} 30. Rxf6 {[%clk 0:00:54]}  Rxf6 {[%clk 0:00:21]} 31. Qb3 {[%clk 0:00:29]}  Qa7 {[%clk 0:00:15]} 32. Qa2 {[%clk 0:00:28]}  Be8 {[%clk 0:00:10]} 33. c4 {[%clk 0:00:25]}  Bxh5 {[%clk 0:00:06]} 34. Rxa3 {[%clk 0:00:19]}  Qe7 {[%clk 0:00:06]} 35. Ra8+ {[%clk 0:00:19]}  Rf8 {[%clk 0:00:06]} 36. Qa7 {[%clk 0:00:17]}  Qf6 {[%clk 0:00:04]} 37. Rxf8+ {[%clk 0:00:15]}  Qxf8 {[%clk 0:00:05]} 38. b5 {[%clk 0:00:12]}  g6 {[%clk 0:00:03]} 39. Qa8 {[%clk 0:00:08]}  Qxa8 {[%clk 0:00:03]} 40. Bxa8 {[%clk 0:00:08]}  Bg4 {[%clk 0:00:03]} 41. b6 {[%clk 0:00:08]}  Bc8 {[%clk 0:00:03]} 42. b7 {[%clk 0:00:08]}  Bxb7 {[%clk 0:00:04]} 43. Bxb7 {[%clk 0:00:09]}  Kg7 {[%clk 0:00:05]} 44. Bd5 {[%clk 0:00:08]}  Kf6 {[%clk 0:00:05]} 45. Ke2 {[%clk 0:00:09]}  h5 {[%clk 0:00:05]} 46. Kf3 {[%clk 0:00:09]}  Kg5 {[%clk 0:00:05]} 47. Bf7 {[%clk 0:00:09]}  Kf6 {[%clk 0:00:05]} 48. Be8 {[%clk 0:00:09]}  Kg5 {[%clk 0:00:05]} 49. Ke4 {[%clk 0:00:09]}  Kf6 {[%clk 0:00:05]} 50. Kd5 {[%clk 0:00:09]}  Kf5 {[%clk 0:00:05]} 51. Kxd6 {[%clk 0:00:07]}  e4 {[%clk 0:00:05]} 52. Kd5 {[%clk 0:00:07]}  g5 {[%clk 0:00:05]} 53. Bxh5 {[%clk 0:00:06]}  g4 {[%clk 0:00:05]} 54. Bxg4+ {[%clk 0:00:06]} 1-0


[Site "https://www.chess.com"]

[Event "Titled Tuesday Blitz June 07 Early 2022"]
[White "Bortnyk, Olexandr"]
[Black "Matlakov, Maxim"]
[WhiteFideId "14120828"]
[BlackFideId "4168003"]
[WhiteElo "2723"]
[BlackElo "2669"]
[Result "1-0"]
[Round "08"]
[TimeControl "180+1"]
[Date "2022.06.07"]
[WhiteClock "0:00:37"]
[BlackClock "0:00:07"]

1. d4 {[%clk 0:03:00]}  d5 {[%clk 0:03:00]} 2. Nc3 {[%clk 0:03:00]}  Nf6 {[%clk 0:03:00]} 3. Bf4 {[%clk 0:03:01]}  e6 {[%clk 0:02:58]} 4. Nb5 {[%clk 0:03:01]}  Bb4+ {[%clk 0:02:57]} 5. c3 {[%clk 0:03:02]}  Ba5 {[%clk 0:02:57]} 6. a4 {[%clk 0:03:02]}  a6 {[%clk 0:02:49]} 7. b4 {[%clk 0:03:02]}  Bxb4 {[%clk 0:02:48]} 8. cxb4 {[%clk 0:02:59]}  axb5 {[%clk 0:02:48]} 9. axb5 {[%clk 0:03:00]}  Rxa1 {[%clk 0:02:48]} 10. Qxa1 {[%clk 0:03:01]}  Nh5 {[%clk 0:02:48]} 11. Be5 {[%clk 0:02:58]}  Nd7 {[%clk 0:02:44]} 12. e3 {[%clk 0:02:56]}  O-O {[%clk 0:02:40]} 13. Qc3 {[%clk 0:02:48]}  Nxe5 {[%clk 0:02:32]} 14. dxe5 {[%clk 0:02:49]}  d4 {[%clk 0:01:59]} 15. Qxd4 {[%clk 0:02:34]}  Qxd4 {[%clk 0:01:58]} 16. exd4 {[%clk 0:02:35]}  Rd8 {[%clk 0:01:58]} 17. Ne2 {[%clk 0:02:29]}  f5 {[%clk 0:01:41]} 18. Kd2 {[%clk 0:02:29]}  Bd7 {[%clk 0:01:37]} 19. Nc3 {[%clk 0:02:26]}  Be8 {[%clk 0:01:37]} 20. Ke3 {[%clk 0:02:21]}  f4+ {[%clk 0:01:30]} 21. Kd3 {[%clk 0:02:21]}  g5 {[%clk 0:01:19]} 22. g4 {[%clk 0:02:12]}  fxg3 {[%clk 0:00:47]} 23. hxg3 {[%clk 0:02:13]}  Bg6+ {[%clk 0:00:47]} 24. Ke3 {[%clk 0:02:11]}  Ng7 {[%clk 0:00:47]} 25. g4 {[%clk 0:02:11]}  h5 {[%clk 0:00:44]} 26. f3 {[%clk 0:01:44]}  Ra8 {[%clk 0:00:43]} 27. Bd3 {[%clk 0:01:44]}  Kf7 {[%clk 0:00:38]} 28. Ne4 {[%clk 0:01:24]}  Bxe4 {[%clk 0:00:35]} 29. Bxe4 {[%clk 0:01:25]}  Ra3+ {[%clk 0:00:35]} 30. Kd2 {[%clk 0:01:25]}  h4 {[%clk 0:00:33]} 31. Bxb7 {[%clk 0:01:26]}  Ke7 {[%clk 0:00:27]} 32. Bc6 {[%clk 0:01:24]}  Ne8 {[%clk 0:00:24]} 33. Rc1 {[%clk 0:01:11]}  Ng7 {[%clk 0:00:21]} 34. Kc2 {[%clk 0:01:02]}  Re3 {[%clk 0:00:20]} 35. Ra1 {[%clk 0:00:58]}  Re2+ {[%clk 0:00:15]} 36. Kd3 {[%clk 0:00:51]}  Rb2 {[%clk 0:00:13]} 37. Kc3 {[%clk 0:00:52]}  Re2 {[%clk 0:00:12]} 38. Ra7 {[%clk 0:00:48]}  Kd8 {[%clk 0:00:13]} 39. Ra8+ {[%clk 0:00:47]}  Ke7 {[%clk 0:00:12]} 40. Rc8 {[%clk 0:00:42]}  h3 {[%clk 0:00:12]} 41. Rxc7+ {[%clk 0:00:42]}  Kf8 {[%clk 0:00:13]} 42. Rc8+ {[%clk 0:00:43]}  Kf7 {[%clk 0:00:14]} 43. Rh8 {[%clk 0:00:43]}  h2 {[%clk 0:00:13]} 44. b6 {[%clk 0:00:44]}  Re1 {[%clk 0:00:09]} 45. b7 {[%clk 0:00:38]}  Rc1+ {[%clk 0:00:06]} 46. Kb2 {[%clk 0:00:37]}  Rxc6 {[%clk 0:00:07]} 47. b8=Q {[%clk 0:00:37]} 1-0


[Site "https://www.chess.com"]